[Event "Titled Tuesday Blitz December 27 Early 2022"]
[White "Chernov, Mikhail"]
[Black "Cardoso Cardoso, Jose Gabriel"]
[WhiteFideId "24143170"]
[BlackFideId "4430492"]
[WhiteElo "2205"]
[BlackElo "2492"]
[Result "0-1"]
[Round "02"]
[TimeControl "180+2"]
[Date "2022.12.27"]
[WhiteClock "0:00:14"]
[BlackClock "0:01:47"]

1. e4 {[%clk 0:03:00]}  g6 {[%clk 0:02:59]} 2. d4 {[%clk 0:03:00]}  Bg7 {[%clk 0:03:00]} 3. Nc3 {[%clk 0:03:01]}  d6 {[%clk 0:03:00]} 4. Be3 {[%clk 0:03:02]}  a6 {[%clk 0:03:00]} 5. Qd2 {[%clk 0:03:02]}  b5 {[%clk 0:03:00]} 6. a4 {[%clk 0:03:03]}  b4 {[%clk 0:02:59]} 7. Nd1 {[%clk 0:03:04]}  Bb7 {[%clk 0:02:58]} 8. Bd3 {[%clk 0:03:02]}  Nf6 {[%clk 0:02:55]} 9. f3 {[%clk 0:03:03]}  a5 {[%clk 0:02:54]} 10. c3 {[%clk 0:03:02]}  bxc3 {[%clk 0:02:50]} 11. bxc3 {[%clk 0:03:03]}  Nbd7 {[%clk 0:02:48]} 12. Ne2 {[%clk 0:03:04]}  Ba6 {[%clk 0:02:45]} 13. O-O {[%clk 0:03:05]}  Nb6 {[%clk 0:02:43]} 14. Bxa6 {[%clk 0:02:43]}  Rxa6 {[%clk 0:02:44]} 15. Qd3 {[%clk 0:02:35]}  Ra8 {[%clk 0:02:41]} 16. Nb2 {[%clk 0:02:11]}  O-O {[%clk 0:02:39]} 17. Nc4 {[%clk 0:02:11]}  Nfd7 {[%clk 0:02:38]} 18. Nxb6 {[%clk 0:02:05]}  Nxb6 {[%clk 0:02:37]} 19. Rfb1 {[%clk 0:01:53]}  Qd7 {[%clk 0:02:35]} 20. d5 {[%clk 0:01:34]}  Nxa4 {[%clk 0:02:32]} 21. Qc4 {[%clk 0:01:33]}  Nb6 {[%clk 0:02:28]} 22. Bxb6 {[%clk 0:01:32]}  cxb6 {[%clk 0:02:29]} 23. Rxb6 {[%clk 0:01:32]}  Qa7 {[%clk 0:02:27]} 24. Rb1 {[%clk 0:01:21]}  a4 {[%clk 0:02:23]} 25. Kf1 {[%clk 0:01:16]}  a3 {[%clk 0:02:20]} 26. Qb3 {[%clk 0:00:54]}  a2 {[%clk 0:02:02]} 27. Ra1 {[%clk 0:00:53]}  Rfc8 {[%clk 0:02:02]} 28. Nd4 {[%clk 0:00:19]}  Rxc3 {[%clk 0:01:48]} 29. Qxc3 {[%clk 0:00:14]}  Qxb6 {[%clk 0:01:47]} 0-1


[Site "https://www.chess.com"]

[Event "Titled Tuesday Blitz December 27 Early 2022"]
[White "Chigaev, Maksim"]
[Black "Janaszak, Dawid"]
[WhiteFideId "4108116"]
[BlackFideId "1119206"]
[WhiteElo "2628"]
[BlackElo "2316"]
[Result "1-0"]
[Round "02"]
[TimeControl "180+2"]
[Date "2022.12.27"]
[WhiteClock "0:00:12"]
[BlackClock "0:00:03"]

1. e4 {[%clk 0:03:00]}  c5 {[%clk 0:02:58]} 2. Nf3 {[%clk 0:03:01]}  Nc6 {[%clk 0:02:58]} 3. Bb5 {[%clk 0:03:01]}  g6 {[%clk 0:02:57]} 4. O-O {[%clk 0:03:01]}  Bg7 {[%clk 0:02:57]} 5. Re1 {[%clk 0:03:02]}  Nf6 {[%clk 0:02:57]} 6. c3 {[%clk 0:03:02]}  O-O {[%clk 0:02:50]} 7. h3 {[%clk 0:03:02]}  e5 {[%clk 0:02:44]} 8. d4 {[%clk 0:03:00]}  cxd4 {[%clk 0:02:43]} 9. cxd4 {[%clk 0:03:00]}  exd4 {[%clk 0:02:40]} 10. Nxd4 {[%clk 0:01:58]}  Qb6 {[%clk 0:02:22]} 11. Nxc6 {[%clk 0:01:58]}  bxc6 {[%clk 0:02:15]} 12. Bd3 {[%clk 0:01:48]}  d5 {[%clk 0:02:14]} 13. Nc3 {[%clk 0:01:46]}  dxe4 {[%clk 0:02:05]} 14. Nxe4 {[%clk 0:01:46]}  Nd5 {[%clk 0:01:55]} 15. a3 {[%clk 0:01:28]}  a5 {[%clk 0:01:46]} 16. Qc2 {[%clk 0:01:28]}  Bf5 {[%clk 0:01:38]} 17. Rb1 {[%clk 0:01:26]}  Rad8 {[%clk 0:01:25]} 18. Bg5 {[%clk 0:01:23]}  Rb8 {[%clk 0:01:20]} 19. Nc5 {[%clk 0:00:52]}  Bxd3 {[%clk 0:01:12]} 20. Nxd3 {[%clk 0:00:53]}  h6 {[%clk 0:00:57]} 21. Bd2 {[%clk 0:00:51]}  Kh7 {[%clk 0:00:53]} 22. Ne5 {[%clk 0:00:46]}  Bxe5 {[%clk 0:00:37]} 23. Rxe5 {[%clk 0:00:45]}  Rfe8 {[%clk 0:00:38]} 24. Qe4 {[%clk 0:00:36]}  Nf6 {[%clk 0:00:24]} 25. Qf4 {[%clk 0:00:33]}  Rxe5 {[%clk 0:00:22]} 26. Qxe5 {[%clk 0:00:29]}  Nd5 {[%clk 0:00:15]} 27. Qe4 {[%clk 0:00:24]}  Qd8 {[%clk 0:00:10]} 28. Qc2 {[%clk 0:00:18]}  Qf6 {[%clk 0:00:08]} 29. Bxa5 {[%clk 0:00:18]}  Nf4 {[%clk 0:00:08]} 30. Bc7 {[%clk 0:00:18]}  Re8 {[%clk 0:00:06]} 31. Bxf4 {[%clk 0:00:18]}  Qxf4 {[%clk 0:00:07]} 32. Qxc6 {[%clk 0:00:17]}  Re2 {[%clk 0:00:07]} 33. Qb6 {[%clk 0:00:17]}  Qe4 {[%clk 0:00:06]} 34. Rf1 {[%clk 0:00:17]}  h5 {[%clk 0:00:04]} 35. b3 {[%clk 0:00:15]}  Qc2 {[%clk 0:00:04]} 36. a4 {[%clk 0:00:14]}  Re6 {[%clk 0:00:04]} 37. Qb7 {[%clk 0:00:14]}  Rf6 {[%clk 0:00:04]} 38. a5 {[%clk 0:00:14]}  Qb2 {[%clk 0:00:04]} 39. b4 {[%clk 0:00:13]}  Rf4 {[%clk 0:00:03]} 40. a6 {[%clk 0:00:11]}  Rxb4 {[%clk 0:00:03]} 41. Qxf7+ {[%clk 0:00:11]}  Kh6 {[%clk 0:00:03]} 42. Qf8+ {[%clk 0:00:11]}  Kh7 {[%clk 0:00:03]} 43. a7 {[%clk 0:00:11]}  Ra4 {[%clk 0:00:03]} 44. a8=Q {[%clk 0:00:12]} 1-0


[Site "https://www.chess.com"]

[Event "Titled Tuesday Blitz December 27 Early 2022"]
[White "Chizhikov, Vladislav"]
[Black "Diaz, Fernando"]
[WhiteFideId "4178157"]
[BlackFideId "3701255"]
[WhiteElo "2279"]
[BlackElo "2121"]
[Result "0-1"]
[Round "02"]
[TimeControl "180+2"]
[Date "2022.12.27"]
[WhiteClock "0:01:09"]
[BlackClock "0:01:44"]

1. e4 {[%clk 0:01:55]}  e6 {[%clk 0:02:32]} 2. d4 {[%clk 0:01:53]}  d5 {[%clk 0:02:33]} 3. Nc3 {[%clk 0:01:52]}  Bb4 {[%clk 0:02:33]} 4. e5 {[%clk 0:01:51]}  c5 {[%clk 0:02:33]} 5. a3 {[%clk 0:01:52]}  Bxc3+ {[%clk 0:02:34]} 6. bxc3 {[%clk 0:01:53]}  Ne7 {[%clk 0:02:35]} 7. Qg4 {[%clk 0:01:52]}  Qc7 {[%clk 0:02:35]} 8. Qxg7 {[%clk 0:01:52]}  Rg8 {[%clk 0:02:35]} 9. Qxh7 {[%clk 0:01:53]}  cxd4 {[%clk 0:02:36]} 10. Ne2 {[%clk 0:01:53]}  Nbc6 {[%clk 0:02:36]} 11. f4 {[%clk 0:01:53]}  dxc3 {[%clk 0:02:36]} 12. Qd3 {[%clk 0:01:53]}  Bd7 {[%clk 0:02:36]} 13. Rb1 {[%clk 0:01:53]}  a6 {[%clk 0:02:35]} 14. Nxc3 {[%clk 0:01:52]}  Na5 {[%clk 0:02:34]} 15. g3 {[%clk 0:01:51]}  Rc8 {[%clk 0:02:33]} 16. Bd2 {[%clk 0:01:49]}  Nc4 {[%clk 0:02:31]} 17. Bg2 {[%clk 0:01:45]}  Nf5 {[%clk 0:02:31]} 18. a4 {[%clk 0:01:40]}  Nxd2 {[%clk 0:02:27]} 19. Kxd2 {[%clk 0:01:40]}  d4 {[%clk 0:02:25]} 20. Ne4 {[%clk 0:01:38]}  Bxa4 {[%clk 0:02:23]} 21. Nf6+ {[%clk 0:01:37]}  Kf8 {[%clk 0:02:22]} 22. Rhc1 {[%clk 0:01:28]}  Rh8 {[%clk 0:02:13]} 23. Qa3+ {[%clk 0:01:25]}  Kg7 {[%clk 0:02:10]} 24. Qxa4 {[%clk 0:01:20]}  Qc3+ {[%clk 0:02:09]} 25. Ke2 {[%clk 0:01:20]}  Rxh2 {[%clk 0:01:56]} 26. Rb3 {[%clk 0:01:09]}  Rxg2+ {[%clk 0:01:48]} 27. Kf1 {[%clk 0:01:09]}  Ne3# {[%clk 0:01:44]} 0-1


[Site "https://www.chess.com"]

[Event "Titled Tuesday Blitz December 27 Early 2022"]
[White "Ciuffoletti, Paolo"]
[Black "Levitskiy, Andrey"]
[WhiteFideId "807630"]
[BlackFideId "14132885"]
[WhiteElo "2106"]
[BlackElo "2304"]
[Result "0-1"]
[Round "02"]
[TimeControl "180+2"]
[Date "2022.12.27"]
[WhiteClock "0:00:05"]
[BlackClock "0:00:04"]

1. e4 {[%clk 0:03:00]}  e6 {[%clk 0:03:00]} 2. d4 {[%clk 0:02:58]}  d5 {[%clk 0:03:00]} 3. e5 {[%clk 0:02:59]}  c5 {[%clk 0:03:00]} 4. c3 {[%clk 0:02:59]}  Qb6 {[%clk 0:03:01]} 5. Nf3 {[%clk 0:02:59]}  Nc6 {[%clk 0:03:01]} 6. a3 {[%clk 0:02:57]}  Nh6 {[%clk 0:03:01]} 7. b4 {[%clk 0:02:50]}  cxd4 {[%clk 0:03:01]} 8. cxd4 {[%clk 0:02:50]}  Nf5 {[%clk 0:03:01]} 9. Be3 {[%clk 0:02:50]}  Nxe3 {[%clk 0:02:59]} 10. fxe3 {[%clk 0:02:49]}  f6 {[%clk 0:03:00]} 11. exf6 {[%clk 0:02:37]}  gxf6 {[%clk 0:03:01]} 12. Bd3 {[%clk 0:02:36]}  Bh6 {[%clk 0:03:01]} 13. Qe2 {[%clk 0:02:35]}  Bd7 {[%clk 0:03:02]} 14. Nc3 {[%clk 0:02:26]}  Ne7 {[%clk 0:02:55]} 15. e4 {[%clk 0:01:59]}  Rc8 {[%clk 0:02:47]} 16. Nd1 {[%clk 0:01:41]}  a5 {[%clk 0:02:27]} 17. b5 {[%clk 0:01:23]}  dxe4 {[%clk 0:02:23]} 18. Qxe4 {[%clk 0:01:14]}  Bxb5 {[%clk 0:01:57]} 19. O-O {[%clk 0:00:55]}  Bxd3 {[%clk 0:01:51]} 20. Qxd3 {[%clk 0:00:54]}  O-O {[%clk 0:01:51]} 21. Nf2 {[%clk 0:00:46]}  Nd5 {[%clk 0:01:41]} 22. Qe4 {[%clk 0:00:36]}  Bg7 {[%clk 0:01:32]} 23. Rab1 {[%clk 0:00:35]}  Qa6 {[%clk 0:01:25]} 24. Rfe1 {[%clk 0:00:21]}  Nc3 {[%clk 0:01:24]} 25. Qxb7 {[%clk 0:00:21]}  Qxb7 {[%clk 0:00:49]} 26. Rxb7 {[%clk 0:00:19]}  Rfe8 {[%clk 0:00:50]} 27. Ne4 {[%clk 0:00:18]}  Nxe4 {[%clk 0:00:48]} 28. Rxe4 {[%clk 0:00:18]}  Rc3 {[%clk 0:00:45]} 29. Rb6 {[%clk 0:00:16]}  Kf7 {[%clk 0:00:37]} 30. a4 {[%clk 0:00:14]}  Rc4 {[%clk 0:00:32]} 31. Rb7+ {[%clk 0:00:14]}  Re7 {[%clk 0:00:29]} 32. Rxe7+ {[%clk 0:00:12]}  Kxe7 {[%clk 0:00:30]} 33. Rg4 {[%clk 0:00:12]}  Kf8 {[%clk 0:00:22]} 34. Rh4 {[%clk 0:00:10]}  Rxa4 {[%clk 0:00:18]} 35. Rxh7 {[%clk 0:00:10]}  Ra2 {[%clk 0:00:18]} 36. Rh5 {[%clk 0:00:10]}  a4 {[%clk 0:00:18]} 37. Ra5 {[%clk 0:00:08]}  a3 {[%clk 0:00:18]} 38. h4 {[%clk 0:00:08]}  f5 {[%clk 0:00:18]} 39. h5 {[%clk 0:00:08]}  Bh6 {[%clk 0:00:09]} 40. Ra7 {[%clk 0:00:07]}  Bf4 {[%clk 0:00:08]} 41. Ne5 {[%clk 0:00:06]}  Be3+ {[%clk 0:00:05]} 42. Kh2 {[%clk 0:00:05]}  Bxd4 {[%clk 0:00:06]} 43. Ng6+ {[%clk 0:00:05]}  Kg8 {[%clk 0:00:04]} 44. h6 {[%clk 0:00:05]}  Bxa7 {[%clk 0:00:04]} 0-1


[Site "https://www.chess.com"]

[Event "Titled Tuesday Blitz December 27 Early 2022"]
[White "Clawitter, Craig"]
[Black "Liyanage, Ranindu Dilshan"]
[WhiteFideId "2023105"]
[BlackFideId "9915834"]
[WhiteElo "2050"]
[BlackElo "2342"]
[Result "0-1"]
[Round "02"]
[TimeControl "180+2"]
[Date "2022.12.27"]
[WhiteClock "0:00:04"]
[BlackClock "0:00:12"]

1. e4 {[%clk 0:02:57]}  e6 {[%clk 0:02:59]} 2. d4 {[%clk 0:02:57]}  d5 {[%clk 0:03:00]} 3. e5 {[%clk 0:02:58]}  c5 {[%clk 0:02:59]} 4. c3 {[%clk 0:02:58]}  Nc6 {[%clk 0:03:00]} 5. Nf3 {[%clk 0:02:58]}  Qb6 {[%clk 0:02:58]} 6. a3 {[%clk 0:02:58]}  Nh6 {[%clk 0:02:55]} 7. b4 {[%clk 0:02:57]}  cxd4 {[%clk 0:02:54]} 8. cxd4 {[%clk 0:02:58]}  Nf5 {[%clk 0:02:53]} 9. Be3 {[%clk 0:02:58]}  a5 {[%clk 0:02:42]} 10. b5 {[%clk 0:02:53]}  Na7 {[%clk 0:02:42]} 11. Nc3 {[%clk 0:02:43]}  Bd7 {[%clk 0:02:42]} 12. Na4 {[%clk 0:02:13]}  Qd8 {[%clk 0:02:38]} 13. Qb3 {[%clk 0:02:06]}  Rc8 {[%clk 0:02:30]} 14. Bd3 {[%clk 0:02:04]}  Nxe3 {[%clk 0:02:24]} 15. fxe3 {[%clk 0:02:05]}  Be7 {[%clk 0:02:25]} 16. O-O {[%clk 0:02:04]}  O-O {[%clk 0:02:24]} 17. Rac1 {[%clk 0:01:56]}  Bg5 {[%clk 0:02:06]} 18. Nxg5 {[%clk 0:01:06]}  Qxg5 {[%clk 0:02:03]} 19. Kh1 {[%clk 0:00:56]}  Kh8 {[%clk 0:01:54]} 20. Nc5 {[%clk 0:00:40]}  Qxe3 {[%clk 0:01:29]} 21. Rce1 {[%clk 0:00:27]}  Qxd4 {[%clk 0:01:28]} 22. Nxd7 {[%clk 0:00:27]}  Rfd8 {[%clk 0:01:27]} 23. Rxf7 {[%clk 0:00:15]}  Rc3 {[%clk 0:01:19]} 24. Qd1 {[%clk 0:00:14]}  Rxd3 {[%clk 0:01:10]} 25. Qh5 {[%clk 0:00:07]}  Rg8 {[%clk 0:00:23]} 26. Nf8 {[%clk 0:00:04]}  h6 {[%clk 0:00:12]} 0-1


[Site "https://www.chess.com"]

[Event "Titled Tuesday Blitz December 27 Early 2022"]
[White "Cnejev, Vladimir-Alexandru"]
[Black "Kopacz, Grzegorz"]
[WhiteFideId "1260898"]
[BlackFideId "1109880"]
[WhiteElo "2374"]
[BlackElo "1997"]
[Result "1-0"]
[Round "02"]
[TimeControl "180+2"]
[Date "2022.12.27"]
[WhiteClock "0:00:08"]
[BlackClock "0:00:24"]

1. e4 {[%clk 0:02:59]}  c5 {[%clk 0:02:58]} 2. Nf3 {[%clk 0:02:58]}  g6 {[%clk 0:02:57]} 3. c3 {[%clk 0:02:58]}  Nc6 {[%clk 0:02:53]} 4. d4 {[%clk 0:02:57]}  cxd4 {[%clk 0:02:53]} 5. cxd4 {[%clk 0:02:58]}  d5 {[%clk 0:02:53]} 6. exd5 {[%clk 0:02:58]}  Qxd5 {[%clk 0:02:54]} 7. Nc3 {[%clk 0:02:58]}  Qd8 {[%clk 0:02:54]} 8. d5 {[%clk 0:02:57]}  Nb8 {[%clk 0:02:53]} 9. Bf4 {[%clk 0:02:38]}  Nf6 {[%clk 0:02:51]} 10. Bc4 {[%clk 0:02:14]}  Bg7 {[%clk 0:02:50]} 11. O-O {[%clk 0:02:14]}  O-O {[%clk 0:02:48]} 12. Re1 {[%clk 0:02:12]}  Bg4 {[%clk 0:02:41]} 13. h3 {[%clk 0:02:10]}  Bf5 {[%clk 0:02:40]} 14. Nd4 {[%clk 0:02:02]}  Bd7 {[%clk 0:02:36]} 15. Qf3 {[%clk 0:02:01]}  a6 {[%clk 0:02:34]} 16. d6 {[%clk 0:01:38]}  exd6 {[%clk 0:02:29]} 17. Qxb7 {[%clk 0:01:36]}  Qc8 {[%clk 0:02:14]} 18. Qxa8 {[%clk 0:01:22]}  Qxc4 {[%clk 0:02:12]} 19. Bxd6 {[%clk 0:01:22]}  Rc8 {[%clk 0:02:02]} 20. Bxb8 {[%clk 0:01:11]}  Qxd4 {[%clk 0:02:01]} 21. Qa7 {[%clk 0:00:24]}  Qb4 {[%clk 0:01:56]} 22. Be5 {[%clk 0:00:22]}  Be6 {[%clk 0:01:51]} 23. Rad1 {[%clk 0:00:18]}  Ne8 {[%clk 0:01:11]} 24. Bxg7 {[%clk 0:00:17]}  Nxg7 {[%clk 0:01:12]} 25. Ne4 {[%clk 0:00:16]}  Qxb2 {[%clk 0:01:08]} 26. Qe7 {[%clk 0:00:13]}  Nh5 {[%clk 0:00:57]} 27. Rd8+ {[%clk 0:00:11]}  Rxd8 {[%clk 0:00:57]} 28. Qxd8+ {[%clk 0:00:12]}  Kg7 {[%clk 0:00:58]} 29. Rd1 {[%clk 0:00:12]}  Qxa2 {[%clk 0:00:45]} 30. Qd4+ {[%clk 0:00:11]}  Kh6 {[%clk 0:00:32]} 31. g4 {[%clk 0:00:10]}  f5 {[%clk 0:00:24]} 32. g5# {[%clk 0:00:08]} 1-0


[Site "https://www.chess.com"]

[Event "Titled Tuesday Blitz December 27 Early 2022"]
[White "Cremisi, Daniel"]
[Black "Oparin, Grigoriy"]
[WhiteFideId "2089882"]
[BlackFideId "24125890"]
[WhiteElo "2170"]
[BlackElo "2667"]
[Result "0-1"]
[Round "02"]
[TimeControl "180+2"]
[Date "2022.12.27"]
[WhiteClock "0:00:11"]
[BlackClock "0:00:11"]

1. d4 {[%clk 0:03:00]}  f5 {[%clk 0:02:59]} 2. Nc3 {[%clk 0:02:58]}  Nf6 {[%clk 0:03:00]} 3. Bg5 {[%clk 0:02:58]}  d5 {[%clk 0:03:00]} 4. Bxf6 {[%clk 0:02:57]}  exf6 {[%clk 0:03:01]} 5. e3 {[%clk 0:02:57]}  Be6 {[%clk 0:03:01]} 6. Bd3 {[%clk 0:02:57]}  Nc6 {[%clk 0:03:00]} 7. a3 {[%clk 0:02:57]}  Qd7 {[%clk 0:03:00]} 8. Nge2 {[%clk 0:02:51]}  O-O-O {[%clk 0:03:00]} 9. b4 {[%clk 0:02:45]}  Ne7 {[%clk 0:02:52]} 10. Qd2 {[%clk 0:02:40]}  Kb8 {[%clk 0:02:51]} 11. O-O {[%clk 0:02:40]}  Nc8 {[%clk 0:02:50]} 12. Rfb1 {[%clk 0:02:37]}  Nd6 {[%clk 0:02:48]} 13. a4 {[%clk 0:02:36]}  g5 {[%clk 0:02:40]} 14. b5 {[%clk 0:02:34]}  f4 {[%clk 0:02:06]} 15. exf4 {[%clk 0:02:31]}  gxf4 {[%clk 0:02:07]} 16. Nxf4 {[%clk 0:02:27]}  Bh6 {[%clk 0:02:06]} 17. Nce2 {[%clk 0:02:22]}  Rhg8 {[%clk 0:02:00]} 18. a5 {[%clk 0:02:17]}  Nc4 {[%clk 0:01:35]} 19. Qb4 {[%clk 0:02:09]}  Bg4 {[%clk 0:01:14]} 20. b6 {[%clk 0:01:51]}  cxb6 {[%clk 0:01:12]} 21. Bxc4 {[%clk 0:01:46]}  dxc4 {[%clk 0:01:13]} 22. axb6 {[%clk 0:01:46]}  a6 {[%clk 0:01:13]} 23. Qxc4 {[%clk 0:01:35]}  Qd6 {[%clk 0:00:47]} 24. Qc7+ {[%clk 0:01:26]}  Qxc7 {[%clk 0:00:47]} 25. bxc7+ {[%clk 0:01:26]}  Kxc7 {[%clk 0:00:48]} 26. h3 {[%clk 0:01:16]}  Bf5 {[%clk 0:00:38]} 27. d5 {[%clk 0:01:09]}  Rde8 {[%clk 0:00:32]} 28. Re1 {[%clk 0:00:57]}  Kb8 {[%clk 0:00:26]} 29. Nd4 {[%clk 0:00:47]}  Bxc2 {[%clk 0:00:17]} 30. Nh5 {[%clk 0:00:23]}  Rxe1+ {[%clk 0:00:15]} 31. Rxe1 {[%clk 0:00:21]}  Bg6 {[%clk 0:00:14]} 32. Nxf6 {[%clk 0:00:20]}  Rd8 {[%clk 0:00:15]} 33. Ne6 {[%clk 0:00:18]}  Rd6 {[%clk 0:00:15]} 34. Rd1 {[%clk 0:00:15]}  Bc2 {[%clk 0:00:14]} 35. Re1 {[%clk 0:00:14]}  Bb3 {[%clk 0:00:12]} 36. Ng4 {[%clk 0:00:14]}  Bd2 {[%clk 0:00:11]} 37. Re2 {[%clk 0:00:13]}  Ba5 {[%clk 0:00:12]} 38. Nf4 {[%clk 0:00:13]}  Bb4 {[%clk 0:00:08]} 39. Ne3 {[%clk 0:00:13]}  a5 {[%clk 0:00:08]} 40. Rb2 {[%clk 0:00:13]}  a4 {[%clk 0:00:08]} 41. Nd3 {[%clk 0:00:13]}  Bc3 {[%clk 0:00:08]} 42. Rb1 {[%clk 0:00:13]}  Bxd5 {[%clk 0:00:08]} 43. Nxd5 {[%clk 0:00:13]}  Rxd5 {[%clk 0:00:09]} 44. Rc1 {[%clk 0:00:13]}  Rxd3 {[%clk 0:00:08]} 45. Kf1 {[%clk 0:00:12]}  Bb2 {[%clk 0:00:08]} 46. Rc4 {[%clk 0:00:12]}  a3 {[%clk 0:00:09]} 47. Ra4 {[%clk 0:00:13]}  b5 {[%clk 0:00:08]} 48. Ra5 {[%clk 0:00:12]}  Rd5 {[%clk 0:00:09]} 49. Ke2 {[%clk 0:00:13]}  Kb7 {[%clk 0:00:10]} 50. f4 {[%clk 0:00:12]}  Kb6 {[%clk 0:00:10]} 51. Ra8 {[%clk 0:00:12]}  b4 {[%clk 0:00:11]} 52. g4 {[%clk 0:00:12]}  Ra5 {[%clk 0:00:10]} 53. Rb8+ {[%clk 0:00:10]}  Kc5 {[%clk 0:00:11]} 54. Rc8+ {[%clk 0:00:11]}  Kb5 {[%clk 0:00:11]} 0-1


[Site "https://www.chess.com"]

[Event "Titled Tuesday Blitz December 27 Early 2022"]
[White "Cruz, William Ferreira Da"]
[Black "Abdilkhair, Abilmansur"]
[WhiteFideId "2118050"]
[BlackFideId "13716417"]
[WhiteElo "2216"]
[BlackElo "2268"]
[Result "0-1"]
[Round "02"]
[TimeControl "180+2"]
[Date "2022.12.27"]
[WhiteClock "0:00:03"]
[BlackClock "0:00:27"]

1. d4 {[%clk 0:02:49]}  d5 {[%clk 0:02:59]} 2. c4 {[%clk 0:02:49]}  Nc6 {[%clk 0:03:00]} 3. e3 {[%clk 0:02:45]}  e5 {[%clk 0:02:59]} 4. Nf3 {[%clk 0:02:40]}  Bg4 {[%clk 0:02:54]} 5. cxd5 {[%clk 0:02:39]}  Qxd5 {[%clk 0:02:54]} 6. Nc3 {[%clk 0:02:38]}  Bb4 {[%clk 0:02:54]} 7. Be2 {[%clk 0:02:35]}  exd4 {[%clk 0:02:53]} 8. Nxd4 {[%clk 0:02:28]}  Qxg2 {[%clk 0:02:36]} 9. Rf1 {[%clk 0:01:19]}  Bxe2 {[%clk 0:02:34]} 10. Qxe2 {[%clk 0:01:17]}  Nge7 {[%clk 0:02:31]} 11. Nf3 {[%clk 0:01:11]}  O-O-O {[%clk 0:02:02]} 12. Bd2 {[%clk 0:01:05]}  Qg6 {[%clk 0:01:57]} 13. Rg1 {[%clk 0:01:00]}  Qc2 {[%clk 0:01:55]} 14. a3 {[%clk 0:00:26]}  Bxc3 {[%clk 0:01:39]} 15. Bxc3 {[%clk 0:00:25]}  Qxe2+ {[%clk 0:01:36]} 16. Kxe2 {[%clk 0:00:25]}  Ng6 {[%clk 0:01:25]} 17. Bxg7 {[%clk 0:00:24]}  Rhe8 {[%clk 0:01:25]} 18. Bc3 {[%clk 0:00:19]}  Nf4+ {[%clk 0:01:23]} 19. Kf1 {[%clk 0:00:19]}  Nd5 {[%clk 0:01:21]} 20. Rd1 {[%clk 0:00:18]}  Nxc3 {[%clk 0:01:20]} 21. Rxd8+ {[%clk 0:00:19]}  Rxd8 {[%clk 0:01:20]} 22. bxc3 {[%clk 0:00:19]}  Rd1+ {[%clk 0:01:17]} 23. Ke2 {[%clk 0:00:19]}  Rxg1 {[%clk 0:01:15]} 24. Nxg1 {[%clk 0:00:18]}  Kd7 {[%clk 0:01:16]} 25. f4 {[%clk 0:00:17]}  Kd6 {[%clk 0:01:13]} 26. Kd3 {[%clk 0:00:17]}  Kc5 {[%clk 0:01:13]} 27. Nf3 {[%clk 0:00:17]}  f6 {[%clk 0:01:12]} 28. Nd4 {[%clk 0:00:15]}  Ne7 {[%clk 0:01:08]} 29. Ne6+ {[%clk 0:00:14]}  Kd6 {[%clk 0:01:07]} 30. Nf8 {[%clk 0:00:15]}  h5 {[%clk 0:01:05]} 31. Nh7 {[%clk 0:00:15]}  Ke6 {[%clk 0:01:05]} 32. e4 {[%clk 0:00:15]}  f5 {[%clk 0:01:03]} 33. e5 {[%clk 0:00:14]}  Nd5 {[%clk 0:01:03]} 34. Ng5+ {[%clk 0:00:10]}  Ke7 {[%clk 0:01:00]} 35. Nh3 {[%clk 0:00:10]}  c5 {[%clk 0:00:59]} 36. c4 {[%clk 0:00:10]}  Nc7 {[%clk 0:00:58]} 37. Ng5 {[%clk 0:00:10]}  a6 {[%clk 0:00:46]} 38. h4 {[%clk 0:00:10]}  b5 {[%clk 0:00:45]} 39. Kc3 {[%clk 0:00:10]}  Na8 {[%clk 0:00:44]} 40. Nh7 {[%clk 0:00:09]}  Nb6 {[%clk 0:00:41]} 41. Nf6 {[%clk 0:00:08]}  Nxc4 {[%clk 0:00:39]} 42. a4 {[%clk 0:00:07]}  Ne3 {[%clk 0:00:39]} 43. Nxh5 {[%clk 0:00:06]}  Ng2 {[%clk 0:00:34]} 44. Ng3 {[%clk 0:00:05]}  Nxh4 {[%clk 0:00:34]} 45. axb5 {[%clk 0:00:04]}  axb5 {[%clk 0:00:34]} 46. Nh5 {[%clk 0:00:02]}  Ng6 {[%clk 0:00:31]} 47. Ng3 {[%clk 0:00:02]}  Ke6 {[%clk 0:00:31]} 48. Ne2 {[%clk 0:00:03]}  Kd5 {[%clk 0:00:29]} 49. Kd3 {[%clk 0:00:03]}  b4 {[%clk 0:00:27]} 0-1


[Site "https://www.chess.com"]

[Event "Titled Tuesday Blitz December 27 Early 2022"]
[White "Csonka, Balazs"]
[Black "Zanette, Edgard Vinicius"]
[WhiteFideId "742910"]
[BlackFideId "2109263"]
[WhiteElo "2496"]
[BlackElo "2085"]
[Result "1-0"]
[Round "02"]
[TimeControl "180+2"]
[Date "2022.12.27"]
[WhiteClock "0:00:09"]
[BlackClock "0:00:02"]

1. e4 {[%clk 0:03:00]}  c5 {[%clk 0:02:56]} 2. Nf3 {[%clk 0:03:00]}  d6 {[%clk 0:02:56]} 3. d4 {[%clk 0:03:00]}  cxd4 {[%clk 0:02:57]} 4. Nxd4 {[%clk 0:03:01]}  Nf6 {[%clk 0:02:57]} 5. Nc3 {[%clk 0:03:01]}  a6 {[%clk 0:02:57]} 6. h3 {[%clk 0:02:58]}  Nc6 {[%clk 0:02:50]} 7. g4 {[%clk 0:02:54]}  e5 {[%clk 0:02:49]} 8. Nb3 {[%clk 0:02:51]}  h6 {[%clk 0:02:36]} 9. Be3 {[%clk 0:02:45]}  Be6 {[%clk 0:02:34]} 10. Qf3 {[%clk 0:02:44]}  b5 {[%clk 0:02:27]} 11. O-O-O {[%clk 0:02:39]}  Be7 {[%clk 0:02:21]} 12. Rg1 {[%clk 0:02:32]}  b4 {[%clk 0:01:55]} 13. Nd5 {[%clk 0:02:07]}  Bxd5 {[%clk 0:01:50]} 14. exd5 {[%clk 0:02:08]}  Na5 {[%clk 0:01:50]} 15. Kb1 {[%clk 0:01:53]}  Nxb3 {[%clk 0:01:29]} 16. cxb3 {[%clk 0:01:52]}  e4 {[%clk 0:01:17]} 17. Qh1 {[%clk 0:01:37]}  Qa5 {[%clk 0:01:00]} 18. h4 {[%clk 0:01:24]}  Rc8 {[%clk 0:00:54]} 19. Bc4 {[%clk 0:01:22]}  Kf8 {[%clk 0:00:20]} 20. Bd4 {[%clk 0:01:14]}  Nd7 {[%clk 0:00:13]} 21. Rde1 {[%clk 0:00:46]}  Nb6 {[%clk 0:00:12]} 22. Rxe4 {[%clk 0:00:39]}  Nxc4 {[%clk 0:00:12]} 23. bxc4 {[%clk 0:00:40]}  b3 {[%clk 0:00:12]} 24. axb3 {[%clk 0:00:37]}  Qb4 {[%clk 0:00:10]} 25. Rg3 {[%clk 0:00:27]}  Rc7 {[%clk 0:00:06]} 26. Qf3 {[%clk 0:00:20]}  a5 {[%clk 0:00:05]} 27. g5 {[%clk 0:00:18]}  hxg5 {[%clk 0:00:04]} 28. hxg5 {[%clk 0:00:19]}  Rh2 {[%clk 0:00:03]} 29. Rh3 {[%clk 0:00:12]}  Rxh3 {[%clk 0:00:03]} 30. Qxh3 {[%clk 0:00:13]}  Kg8 {[%clk 0:00:03]} 31. Rh4 {[%clk 0:00:11]}  f6 {[%clk 0:00:01]} 32. Qe6+ {[%clk 0:00:09]}  Kf8 {[%clk 0:00:02]} 33. Rh8# {[%clk 0:00:09]} 1-0


[Site "https://www.chess.com"]